bitfinex/quotes_BTCUSD_20250129
["timestamp","ask_amount","ask_price","bid_price","bid_amount"]
[1738177774574,0.49293699,101790.0,101780.0,0.00203948]
[1738177775002,0.50210425,101790.0,101780.0,0.00203948]
[1738177776118,0.09738721,101790.0,101780.0,0.00203948]
[1738177776340,0.24474921,101790.0,101780.0,0.00203948]
[1738177776548,0.09738721,101790.0,101780.0,0.14941548]
[1738177776759,0.00014405,101790.0,101780.0,0.148376]
[1738177777015,0.14750605,101790.0,101780.0,0.001]
[1738177777277,0.27357963,101790.0,101780.0,0.001]
[1738177777523,0.27357963,101790.0,101770.0,0.14762967]
[1738177777777,0.147376,101780.0,101770.0,0.00023967]
[1738177778033,0.24461916,101780.0,101770.0,0.00023967]
[1738177779575,0.392941,101800.0,101770.0,0.00023967]
[1738177779794,0.001,101780.0,101770.0,0.00071918]
[1738177780003,0.147364,101790.0,101770.0,0.44284277]
[1738177780223,0.343832,101800.0,101780.0,0.14737]
[1738177780433,0.11523682,101790.0,101770.0,0.44185034]
[1738177780664,0.392951,101800.0,101780.0,0.147374]
[1738177780665,0.540309,101800.0,101780.0,0.147374]
[1738177780883,0.147362,101790.0,101770.0,0.44185034]
[1738177781091,0.540312,101800.0,101780.0,0.147376]
[1738177781305,0.147362,101790.0,101780.0,0.147376]
[1738177781814,0.540312,101800.0,101780.0,0.147374]
[1738177782059,0.148358,101800.0,101790.0,0.147362]
[1738177782311,0.34386641,101800.0,101780.0,0.63760516]
[1738177782595,4.541e-05,101800.0,101790.0,0.147362]
[1738177782806,4.541e-05,101800.0,101790.0,0.24460516]
[1738177783016,4.541e-05,101800.0,101790.0,0.31970516]
[1738177783230,0.08582724,101840.0,101790.0,0.21944316]
[1738177783499,0.13460724,101840.0,101790.0,0.21944316]
[1738177783749,0.003,101800.0,101790.0,0.37944316]
[1738177784001,0.003,101800.0,101790.0,0.36944316]
[1738177784254,0.04878,101840.0,101790.0,0.36944316]
[1738177784496,0.14602316,101840.0,101800.0,0.00098208]
[1738177784697,0.14602316,101840.0,101800.0,0.09822524]
[1738177784903,0.04878,101840.0,101810.0,0.09724316]
[1738177785116,0.04878,101840.0,101820.0,0.00098203]
[1738177785330,0.04878,101840.0,101830.0,0.1257]
[1738177785532,0.05678,101840.0,101830.0,0.0497]
[1738177785761,0.04878,101840.0,101830.0,0.0497]
[1738177785972,0.009,101840.0,101830.0,0.0497]
[1738177786190,0.00914491,101840.0,101830.0,0.0497]
[1738177786462,0.10638807,101840.0,101810.0,0.07698197]
[1738177786710,0.11538807,101840.0,101830.0,0.001]
[1738177786978,0.00914491,101840.0,101810.0,0.07698213]
[1738177787226,0.00914491,101840.0,101830.0,0.001]
[1738177787227,0.10638807,101840.0,101830.0,0.001]
[1738177787497,0.11638807,101840.0,101830.0,0.001]
[1738177787753,0.01914491,101840.0,101830.0,0.001]
[1738177787964,0.01814491,101840.0,101830.0,0.001]
[1738177788228,0.01814491,101840.0,101830.0,0.09824316]
[1738177788475,0.01814491,101840.0,101830.0,0.14734316]
[1738177788720,0.01814491,101840.0,101830.0,0.14680206]
[1738177788952,0.00014491,101840.0,101830.0,0.14634316]
[1738177789467,0.00914491,101840.0,101830.0,0.14634316]
[1738177789968,0.00914491,101840.0,101830.0,0.14934316]
[1738177790428,0.00014491,101840.0,101830.0,0.14634316]
[1738177790637,0.00014491,101840.0,101830.0,0.4036982]
[1738177790864,0.00014491,101840.0,101830.0,0.14634316]
[1738177791088,0.00314491,101840.0,101830.0,0.14732483]
[1738177791301,0.00314491,101840.0,101830.0,0.14634316]
[1738177791513,0.00014491,101840.0,101830.0,0.14732484]
[1738177791721,0.00014491,101840.0,101830.0,0.15032484]
[1738177791926,0.00014491,101840.0,101830.0,0.31032484]
[1738177792151,0.00314491,101840.0,101830.0,0.29934316]
[1738177792375,0.00014491,101840.0,101830.0,0.29634316]
[1738177792807,0.00014491,101840.0,101830.0,0.29934316]
[1738177793029,0.00014491,101840.0,101830.0,0.38544316]
[1738177793240,0.00114491,101840.0,101830.0,0.39144316]
[1738177793449,0.00014491,101840.0,101830.0,0.38544316]
[1738177793655,0.00014491,101840.0,101830.0,0.38844316]
[1738177793859,0.00014491,101840.0,101830.0,0.39144316]
[1738177794286,0.00014491,101840.0,101830.0,0.43144316]
[1738177794502,0.08582724,101870.0,101850.0,0.15]
[1738177794738,0.08582724,101870.0,101860.0,0.14482471]
[1738177794965,0.00029946,101880.0,101860.0,0.39532471]
[1738177795172,0.01993158,101930.0,101890.0,0.15]
[1738177795390,0.00029968,101930.0,101900.0,0.14512425]
[1738177795600,0.00029968,101930.0,101900.0,0.22312425]
[1738177795844,0.00029968,101930.0,101900.0,0.14414316]
[1738177796059,0.00029968,101930.0,101910.0,0.09822444]
[1738177796482,0.00044467,101930.0,101900.0,0.0469]
[1738177796691,0.09768783,101930.0,101900.0,0.0469]
[1738177797136,0.00044467,101930.0,101900.0,0.14414316]
[1738177797353,0.00944467,101930.0,101910.0,0.09822429]
[1738177797576,0.00944467,101930.0,101910.0,0.09724316]
[1738177798005,0.01044467,101930.0,101900.0,0.04888114]
[1738177798216,0.01044467,101930.0,101900.0,0.1461244]
[1738177798420,0.00944467,101930.0,101900.0,0.1461244]
[1738177798627,0.00344467,101930.0,101900.0,0.1451244]
[1738177798850,0.01244467,101930.0,101900.0,0.1461244]
[1738177799056,0.01244467,101930.0,101900.0,0.1451244]
[1738177799485,0.02144467,101930.0,101900.0,0.1461244]
[1738177799712,0.02144467,101930.0,101880.0,0.1274]
[1738177799713,0.10068783,101930.0,101880.0,0.1274]
[1738177799927,0.09768783,101930.0,101890.0,0.0982245]
[1738177800138,0.00144467,101930.0,101900.0,0.002]
[1738177800352,0.00144467,101930.0,101900.0,0.09724316]
[1738177800550,0.00144467,101930.0,101910.0,0.00098115]
[1738177800759,0.00044467,101930.0,101910.0,0.09724316]
[1738177801014,0.00044467,101930.0,101880.0,0.38475504]
[1738177801216,0.09768783,101930.0,101890.0,0.09724316]
[1738177801433,0.09724316,101920.0,101880.0,0.09824316]
[1738177801666,0.09724316,101920.0,101880.0,0.09724316]
[1738177801884,0.3545982,101920.0,101870.0,0.0009815]
[1738177802105,0.00044467,101930.0,101880.0,0.09724316]
[1738177802358,0.10368783,101930.0,101900.0,0.001]
[1738177802579,0.09724316,101920.0,101900.0,0.001]
[1738177803009,0.09724316,101920.0,101880.0,0.49077]
[1738177803220,0.09724316,101920.0,101890.0,0.00098141]
[1738177803431,0.09724316,101910.0,101880.0,0.49577]
[1738177803872,0.25835504,101920.0,101900.0,0.002]
[1738177804090,0.09724316,101910.0,101900.0,0.002]
[1738177804304,0.09724316,101910.0,101880.0,0.005]
[1738177804719,0.09724316,101910.0,101880.0,0.009]
[1738177805152,0.09724316,101910.0,101880.0,0.004]
[1738177806243,0.05636191,101900.0,101880.0,0.009]
[1738177807086,0.09724316,101890.0,101880.0,0.005]
[1738177807305,0.09724316,101890.0,101870.0,0.0005]
[1738177807554,0.25735504,101880.0,101870.0,0.0005]
[1738177807771,0.3545982,101880.0,101870.0,0.0005]
[1738177808190,0.4467982,101880.0,101870.0,0.0005]
[1738177808403,0.49850087,101880.0,101870.0,0.0005]
[1738177808612,0.44694305,101880.0,101870.0,0.0005]
[1738177808857,0.43694305,101880.0,101870.0,0.0005]
[1738177809070,0.49572305,101880.0,101870.0,0.0005]
[1738177809281,0.50472305,101880.0,101870.0,0.0015]
[1738177809754,0.01,101870.0,101810.0,0.00098204]
[1738177810006,0.22415194,101880.0,101870.0,0.001]
[1738177810264,0.50272305,101880.0,101870.0,0.002]
[1738177810788,0.49472305,101880.0,101870.0,0.001]
[1738177811555,0.48572305,101880.0,101830.0,0.00098189]
[1738177811805,0.25735504,101860.0,101810.0,0.152]
[1738177812053,0.3545982,101860.0,101820.0,0.09822506]
[1738177813042,0.25735504,101860.0,101820.0,0.09822506]
[1738177813293,0.0180322,101850.0,101820.0,0.09822506]
[1738177813541,0.0180322,101850.0,101830.0,0.00098186]
[1738177813785,0.0180322,101850.0,101820.0,0.05088186]
[1738177814026,0.0180322,101850.0,101820.0,0.14812502]
[1738177814270,0.0180322,101850.0,101820.0,0.14412502]
[1738177814517,0.147289,101840.0,101820.0,0.68926102]
[1738177814761,0.147304,101830.0,101820.0,0.156318]
[1738177815008,0.147304,101830.0,101820.0,0.151318]
[1738177815258,0.40465904,101830.0,101820.0,0.009]
[1738177815501,0.5019022,101830.0,101820.0,0.004]
[1738177815750,0.5019022,101830.0,101820.0,0.00947951]
[1738177816012,0.40465904,101830.0,101820.0,0.00947951]
[1738177816270,0.5019022,101830.0,101820.0,0.00947951]
[1738177816541,0.5019022,101830.0,101820.0,0.00047951]
[1738177816800,0.5019022,101830.0,101820.0,0.00447951]
[1738177817230,0.343691,101840.0,101820.0,0.00447951]
[1738177817231,0.196357,101860.0,101820.0,0.09772267]
[1738177817460,0.147289,101840.0,101820.0,0.44144967]
[1738177817710,0.148304,101830.0,101820.0,0.00447951]
[1738177818097,0.40465904,101830.0,101820.0,0.00047951]
[1738177818369,0.5059022,101830.0,101820.0,0.00047951]
[1738177818631,0.5019022,101830.0,101820.0,0.00047951]
[1738177819054,0.5109022,101830.0,101820.0,0.00047951]
[1738177819905,0.5149022,101830.0,101820.0,0.00047951]
[1738177820777,0.41765904,101830.0,101820.0,0.00047951]
[1738177821216,0.5149022,101830.0,101820.0,0.00047951]
[1738177821905,0.5149022,101830.0,101790.0,0.5404427]
[1738177821906,0.3996394,101820.0,101800.0,0.147346]
[1738177822147,0.3996394,101820.0,101810.0,0.147333]
[1738177822148,0.0158824,101820.0,101810.0,0.147333]
[1738177822828,0.0158824,101820.0,101810.0,0.24457616]
[1738177823480,0.0158824,101820.0,101810.0,0.26757616]
[1738177823694,0.0158824,101820.0,101810.0,0.41757616]
[1738177823913,0.0158824,101820.0,101810.0,0.39457616]
[1738177824128,0.0168824,101820.0,101810.0,0.24657616]
[1738177824343,0.0158824,101820.0,101810.0,0.24657616]
[1738177824774,0.0168824,101820.0,101810.0,0.24457616]
[1738177825407,0.0168824,101820.0,101810.0,0.26757616]
[1738177825614,0.0168824,101820.0,101810.0,0.12024316]
[1738177825821,0.0168824,101820.0,101810.0,0.26757616]
[1738177826034,0.0168824,101820.0,101810.0,0.26957616]
[1738177826470,0.0168824,101820.0,101810.0,0.24657616]
[1738177826733,0.0168824,101820.0,101810.0,0.24457616]
[1738177826941,0.0168824,101820.0,101810.0,0.003]
[1738177826942,0.1642004,101820.0,101810.0,0.003]
[1738177827152,0.52639685,101820.0,101810.0,0.003]
[1738177827377,0.62364001,101820.0,101810.0,0.003]
[1738177827581,0.62364001,101820.0,101790.0,0.0001427]
[1738177827582,0.31410645,101800.0,101790.0,0.0001427]
[1738177828662,0.40462622,101800.0,101790.0,0.0001427]
[1738177828875,0.40463722,101800.0,101790.0,0.0001427]
[1738177829314,0.40863722,101800.0,101790.0,0.0001427]
[1738177829743,0.151347,101800.0,101790.0,0.0001427]
[1738177829964,0.004,101800.0,101790.0,0.1475047]
[1738177830177,0.004,101800.0,101790.0,0.24474786]
[1738177830624,0.0328417,101800.0,101790.0,0.24474786]
[1738177831056,0.0328417,101800.0,101790.0,0.0001427]
[1738177831057,0.1761887,101800.0,101790.0,0.0001427]
[1738177831264,0.0288417,101800.0,101790.0,0.0001427]
[1738177831448,0.0298417,101800.0,101790.0,0.1475047]
[1738177831785,0.0298417,101800.0,101790.0,0.148487]
[1738177831995,0.0298417,101800.0,101790.0,0.149487]
[1738177832201,0.1761887,101800.0,101790.0,0.0001427]
[1738177832411,0.0288417,101800.0,101790.0,0.1475047]
[1738177832623,0.0328417,101800.0,101790.0,0.24673016]
[1738177832837,0.0328417,101800.0,101790.0,0.24574786]
[1738177833057,0.0328417,101800.0,101790.0,0.26774786]
[1738177833307,0.0338417,101800.0,101790.0,0.34634786]
[1738177833765,0.0288417,101810.0,101790.0,0.34634786]
[1738177833983,0.0288417,101810.0,101800.0,0.26857231]
[1738177834202,0.0288417,101810.0,101800.0,0.27759016]
[1738177834424,0.0288417,101810.0,101800.0,0.26759016]
[1738177834646,0.0288417,101810.0,101800.0,0.24459016]
[1738177834871,0.0158824,101820.0,101810.0,0.147333]
[1738177835078,0.0158824,101820.0,101810.0,0.24457616]
[1738177835716,0.1632004,101820.0,101810.0,0.09724316]
[1738177836362,0.0158824,101820.0,101810.0,0.24457616]
[1738177836571,0.00048283,101830.0,101820.0,0.147318]
[1738177836808,0.00048283,101830.0,101820.0,0.26854311]
[1738177837074,0.00048283,101830.0,101820.0,0.24456116]
[1738177837338,0.00048283,101830.0,101820.0,0.26756116]
[1738177837590,0.00048283,101830.0,101820.0,0.27756116]
[1738177837837,0.00048283,101830.0,101820.0,0.25867876]
[1738177838558,0.00248283,101830.0,101820.0,0.25867876]
[1738177838816,0.00048283,101830.0,101820.0,0.25867876]
[1738177839052,0.00029883,101870.0,101860.0,0.17026]
[1738177839269,0.00029883,101870.0,101860.0,0.26848455]
[1738177839569,0.00029883,101870.0,101860.0,0.26750316]
[1738177840401,0.00029883,101870.0,101860.0,0.27950316]
[1738177841708,0.00029883,101870.0,101860.0,0.28050316]
[1738177842268,0.00029883,101870.0,101860.0,0.10024316]
[1738177842508,0.00029883,101870.0,101860.0,0.24750316]
[1738177842747,0.00029883,101870.0,101860.0,0.10024316]
[1738177842986,0.00029883,101870.0,101860.0,0.24848474]
[1738177843224,0.00029883,101870.0,101860.0,0.24550316]
[1738177843425,0.00029883,101870.0,101860.0,0.24750316]
[1738177843884,0.00029883,101870.0,101860.0,0.24550316]
[1738177844313,0.00029883,101870.0,101860.0,0.09724316]
[1738177844538,0.00029883,101870.0,101860.0,0.24648476]
[1738177844792,0.00229883,101870.0,101860.0,0.24550316]
[1738177845006,0.00029883,101870.0,101860.0,0.24550316]
[1738177845246,0.00029883,101870.0,101860.0,0.24650316]
[1738177845722,0.00029883,101870.0,101860.0,0.24450316]
[1738177845960,0.00229883,101870.0,101860.0,0.24550316]
[1738177846420,0.00229883,101870.0,101860.0,0.24450316]
[1738177847141,0.00229883,101870.0,101860.0,0.26750316]
[1738177847350,0.00029883,101870.0,101860.0,0.27750316]
[1738177847769,0.00029883,101870.0,101860.0,0.42850316]
[1738177847984,0.00029883,101870.0,101860.0,0.41850316]
[1738177848399,0.00029883,101870.0,101860.0,0.42750316]
[1738177848844,0.00029883,101870.0,101860.0,0.43150316]
[1738177849246,0.00029883,101870.0,101860.0,0.43350316]
[1738177849671,0.00029883,101870.0,101860.0,0.28150316]
[1738177849895,0.00029883,101870.0,101860.0,0.43450316]
[1738177850107,0.00029883,101870.0,101860.0,0.71817678]
[1738177850739,0.00029883,101870.0,101860.0,0.45140316]
[1738177850952,0.00029883,101870.0,101860.0,0.46140316]
[1738177851771,0.00029883,101870.0,101860.0,0.71817678]
[1738177852266,0.00029883,101870.0,101860.0,0.56817678]
[1738177852486,0.00029883,101870.0,101860.0,0.30140316]
[1738177852699,0.00029883,101870.0,101860.0,0.31140316]
[1738177852917,0.00029883,101870.0,101860.0,0.25150316]
[1738177855041,0.00029883,101870.0,101860.0,0.24750316]
[1738177855457,0.00029883,101870.0,101860.0,0.24850316]
[1738177855904,0.00029883,101870.0,101860.0,0.24550316]
[1738177856357,0.00029883,101870.0,101860.0,0.24750316]
[1738177856777,0.00029883,101870.0,101860.0,0.24550316]
[1738177856992,0.00029883,101870.0,101860.0,0.24750316]
[1738177857618,0.14754483,101870.0,101860.0,0.10024316]
[1738177858029,0.00029883,101870.0,101860.0,0.24848478]
[1738177858236,0.00029883,101870.0,101860.0,0.24750316]
[1738177858445,0.00029883,101870.0,101860.0,0.10024316]
[1738177858893,0.00029883,101870.0,101860.0,0.24648476]
[1738177859105,0.00029883,101870.0,101860.0,0.24550316]
[1738177859313,0.00029883,101870.0,101860.0,0.24650316]
[1738177859893,0.00029883,101870.0,101860.0,0.09924316]
[1738177860305,0.00029883,101870.0,101860.0,0.24648476]
[1738177860511,0.00229883,101870.0,101860.0,0.24550316]
[1738177860716,0.00229883,101870.0,101860.0,0.001]
[1738177860717,0.16758497,101870.0,101860.0,0.001]
[1738177860889,0.02033897,101870.0,101860.0,0.14924163]
[1738177861095,0.16758497,101870.0,101860.0,0.001]
[1738177862090,0.1784206,101870.0,101860.0,0.001]
[1738177862306,0.34494419,101870.0,101860.0,0.001]
[1738177862562,0.1784206,101870.0,101860.0,0.001]
[1738177862794,0.7089921,101870.0,101860.0,1e-06]
[1738177863001,0.147275,101850.0,101840.0,0.0001423]
[1738177863205,0.41104175,101850.0,101840.0,0.0001423]
[1738177863424,0.43404175,101850.0,101840.0,0.0001423]
[1738177863636,0.51614175,101850.0,101840.0,0.0001423]
[1738177863838,0.5579183,101850.0,101840.0,0.0001423]
[1738177864059,0.6849183,101850.0,101840.0,0.0011423]
[1738177864270,0.7139183,101850.0,101840.0,3e-07]
[1738177864503,0.67214175,101850.0,101840.0,3e-07]
[1738177864769,0.147333,101810.0,101800.0,0.0005]
[1738177865111,0.147333,101810.0,101800.0,0.00098283]
[1738177865301,0.48869975,101810.0,101800.0,0.00098283]
[1738177865531,0.147347,101800.0,101790.0,0.0001427]
[1738177865774,0.57763734,101800.0,101790.0,0.0001427]
[1738177866492,0.72763734,101800.0,101790.0,0.0001427]
[1738177866720,0.72763734,101800.0,101790.0,7e-07]
[1738177866721,0.50197219,101800.0,101790.0,7e-07]
[1738177867475,0.50597219,101800.0,101790.0,7e-07]
[1738177868219,0.67597219,101800.0,101790.0,7e-07]
[1738177868455,0.70467219,101800.0,101790.0,7e-07]
[1738177868682,0.55467219,101800.0,101790.0,7e-07]
[1738177869946,0.72467219,101800.0,101790.0,7e-07]
[1738177870920,0.147362,101790.0,101780.0,0.0001427]
[1738177871171,0.57475803,101780.0,101770.0,0.00108197]
[1738177871414,0.67200119,101780.0,101770.0,0.00108197]
[1738177872059,0.69656012,101780.0,101770.0,0.00108197]
[1738177872280,0.147405,101760.0,101750.0,0.0011424]
[1738177872501,0.50203019,101760.0,101750.0,0.0011424]
[1738177873193,0.71903523,101760.0,101750.0,0.0011424]
[1738177873424,0.62167847,101760.0,101750.0,0.0011424]
[1738177873653,0.40481603,101740.0,101730.0,0.0001423]
[1738177873866,0.50205919,101740.0,101730.0,0.0001423]
[1738177874085,0.52830979,101740.0,101730.0,0.0001423]
[1738177874559,0.195049,101730.0,101720.0,0.01852385]
[1738177874777,0.40484503,101720.0,101710.0,0.0020547]
[1738177875020,0.52208819,101720.0,101710.0,0.0020547]
[1738177875234,0.40486003,101710.0,101700.0,0.0001423]
[1738177875456,0.147492,101700.0,101690.0,0.00118216]
[1738177875677,0.50211719,101700.0,101690.0,0.00118216]
[1738177876114,0.50211719,101700.0,101690.0,0.00132707]
[1738177876347,0.01228935,101710.0,101700.0,0.147492]
[1738177877253,0.01228935,101710.0,101690.0,0.34550807]
[1738177877254,0.15976735,101710.0,101690.0,0.34550807]
[1738177877471,0.344115,101710.0,101690.0,0.34550807]
[1738177877984,0.40487403,101700.0,101690.0,0.00132707]
[1738177878432,0.50211719,101700.0,101690.0,0.00132707]
[1738177878640,0.51267652,101700.0,101690.0,0.00132707]
[1738177878868,0.50211719,101700.0,101690.0,0.00028721]
[1738177879327,0.56318654,101700.0,101690.0,0.00028721]
[1738177879758,0.56618654,101700.0,101690.0,0.00028721]
[1738177880213,0.56418654,101700.0,101690.0,0.00028721]
[1738177880485,0.06606935,101700.0,101690.0,0.14779421]
[1738177880751,0.47994338,101700.0,101690.0,0.00028721]
[1738177881005,0.2419627,101700.0,101690.0,0.00028721]
[1738177881260,0.0944707,101700.0,101690.0,0.24602064]
[1738177881515,0.1034707,101700.0,101690.0,0.24503737]
[1738177881766,0.0546907,101700.0,101690.0,0.48093737]
[1738177882006,0.0546907,101700.0,101690.0,0.47093737]
[1738177882260,0.0496907,101700.0,101690.0,0.32093737]
[1738177882767,0.01528935,101700.0,101690.0,0.24503737]
[1738177882975,0.003,101700.0,101690.0,0.14779421]
[1738177883196,0.003,101700.0,101690.0,0.24602059]
[1738177883483,0.07457732,101730.0,101720.0,0.147463]
[1738177883722,0.07457732,101730.0,101720.0,0.24568914]
[1738177883988,0.07457732,101730.0,101720.0,0.24470616]
[1738177884482,0.19362597,101730.0,101720.0,0.147463]
[1738177884722,0.01775999,101730.0,101720.0,0.147463]
[1738177885262,0.147467,101720.0,101700.0,0.393294]
[1738177885517,0.344085,101720.0,101700.0,0.44136916]
[1738177885785,0.36182299,101730.0,101710.0,0.147478]
[1738177886262,0.01775999,101710.0,101700.0,0.29388716]
[1738177886512,0.01775999,101710.0,101690.0,0.00028721]
[1738177886763,0.147492,101700.0,101690.0,0.09753037]
[1738177886993,0.36189599,101710.0,101690.0,0.63936963]
[1738177887495,0.36189599,101710.0,101690.0,0.44171137]
[1738177887708,0.08701824,101700.0,101690.0,0.24503737]
[1738177887933,0.08701824,101700.0,101690.0,0.24603737]
[1738177889050,0.08701824,101700.0,101690.0,0.24903737]
[1738177889269,0.02856755,101700.0,101690.0,0.24803737]
[1738177889493,0.02856755,101700.0,101690.0,0.24503737]
[1738177889934,0.02856755,101700.0,101690.0,0.24803737]
[1738177890157,0.17605955,101700.0,101690.0,0.00328721]
[1738177890403,0.147492,101700.0,101690.0,0.00028721]
[1738177890639,0.344138,101710.0,101690.0,0.15079421]
[1738177890854,0.42165635,101720.0,101700.0,0.147492]
[1738177891038,0.02840135,101720.0,101710.0,0.147478]
[1738177891279,0.02840135,101720.0,101700.0,0.44138016]
[1738177891493,0.56910535,101720.0,101700.0,0.44138016]
[1738177891707,0.37248735,101720.0,101700.0,0.63802616]
[1738177891931,0.04658308,101710.0,101700.0,0.24473516]
[1738177892806,0.04658308,101710.0,101690.0,0.34444621]
[1738177892992,0.39072008,101710.0,101700.0,0.001]
[1738177893290,0.345137,101710.0,101700.0,0.148492]
[1738177893504,0.344102,101720.0,101700.0,0.54178123]
[1738177893720,0.001,101710.0,101700.0,0.14847523]
[1738177893934,0.54073,101720.0,101700.0,0.34612523]
[1738177894154,0.147472,101720.0,101710.0,0.147478]
[1738177894424,0.196606,101730.0,101700.0,0.24573016]
[1738177894699,0.147478,101710.0,101700.0,0.001]
[1738177895429,0.001,101710.0,101700.0,0.001]
[1738177895636,0.001,101710.0,101700.0,0.24671839]
[1738177895866,0.148478,101710.0,101700.0,0.24473516]
[1738177896083,0.148478,101710.0,101700.0,0.24673516]
[1738177896306,0.148478,101710.0,101700.0,0.149492]
[1738177896522,0.001,101710.0,101700.0,0.149492]
[1738177896741,0.001,101710.0,101700.0,0.147492]
[1738177896958,0.001,101710.0,101700.0,0.149492]
[1738177897183,0.148478,101710.0,101700.0,0.149492]
[1738177897394,0.001,101710.0,101700.0,0.149492]
[1738177897612,0.001,101710.0,101700.0,0.15047516]
[1738177897828,0.001,101710.0,101700.0,0.149492]
[1738177898646,0.148478,101710.0,101700.0,0.149492]
[1738177899056,0.001,101710.0,101700.0,0.149492]
[1738177899274,0.148478,101710.0,101700.0,0.15047516]
[1738177899499,0.148478,101710.0,101700.0,0.149492]
[1738177899720,0.001,101710.0,101700.0,0.144492]
[1738177899931,0.001,101710.0,101700.0,0.14547516]
[1738177900147,0.148478,101710.0,101700.0,0.14547516]
[1738177900364,0.148478,101710.0,101700.0,0.144492]
[1738177900564,0.001,101710.0,101700.0,0.144492]
[1738177900814,0.001,101710.0,101700.0,0.14547516]
[1738177901032,0.148478,101710.0,101700.0,0.14547516]
[1738177901243,0.148478,101710.0,101700.0,0.144492]
[1738177901660,0.001,101710.0,101700.0,0.24271832]
[1738177901871,0.001,101710.0,101700.0,0.24173516]
[1738177902081,0.001,101710.0,101700.0,0.45534084]
[1738177902527,0.001,101710.0,101700.0,0.31875445]
[1738177902742,0.001,101710.0,101700.0,0.28823516]
[1738177902952,0.001,101710.0,101700.0,0.48600293]
[1738177904962,0.08573102,101780.0,101770.0,0.27513653]
[1738177905174,0.08573102,101780.0,101770.0,0.24463416]
[1738177905381,0.08621355,101780.0,101770.0,0.24463416]
[1738177905593,0.00048253,101780.0,101770.0,0.24463416]
[1738177905804,0.14785853,101780.0,101760.0,0.147396]
[1738177906015,0.196523,101770.0,101730.0,0.1308]
[1738177906245,0.147431,101750.0,101730.0,0.09618446]
[1738177906454,0.344005,101750.0,101730.0,0.44022546]
[1738177906881,0.147434,101740.0,101730.0,0.09431362]
[1738177907791,0.148431,101750.0,101730.0,0.43933949]
[1738177908013,0.14745,101730.0,101710.0,0.344105]
[1738177908230,0.344049,101730.0,101710.0,0.44134816]
[1738177908445,0.34403,101740.0,101720.0,0.44132216]
[1738177908685,0.35247623,101750.0,101720.0,0.24568916]
[1738177908904,0.00148223,101750.0,101740.0,0.147434]
[1738177909132,0.00148223,101750.0,101740.0,0.24565997]
[1738177909380,0.00048223,101750.0,101740.0,0.24467716]
[1738177909804,0.00148223,101750.0,101740.0,0.24467716]
[1738177910021,0.00048223,101750.0,101740.0,0.24467716]
[1738177910539,0.00148223,101750.0,101740.0,0.24667716]
[1738177911030,0.00152928,101750.0,101740.0,0.24667716]
[1738177912195,0.00148223,101750.0,101740.0,0.40663011]
[1738177912432,2.3e-07,101750.0,101740.0,0.60445936]
[1738177912676,0.001,101750.0,101740.0,0.47745936]
[1738177912930,0.147378,101780.0,101760.0,0.540464]
[1738177912931,0.34263606,101780.0,101760.0,0.540464]
[1738177913149,0.33781828,101780.0,101760.0,0.44131807]
[1738177913380,0.147391,101770.0,101760.0,0.09738807]
[1738177913629,0.147391,101770.0,101760.0,0.00014491]
[1738177914311,0.50173801,101770.0,101760.0,0.00014491]
[1738177915432,0.53473801,101770.0,101760.0,0.00014491]
[1738177915647,0.2308,101760.0,101740.0,0.006]
[1738177915863,0.2308,101760.0,101730.0,0.0001425]
[1738177915864,0.147434,101740.0,101730.0,0.0001425]
[1738177916084,0.47227716,101740.0,101730.0,0.00048273]
[1738177916348,0.57607716,101740.0,101730.0,7.3e-07]
[1738177917178,0.56707716,101740.0,101730.0,7.3e-07]
[1738177917395,0.54707716,101740.0,101730.0,7.3e-07]
[1738177918237,0.5672283,101740.0,101730.0,7.3e-07]
[1738177918458,0.147478,101710.0,101700.0,0.0001425]
[1738177918671,0.50187296,101710.0,101700.0,0.0001425]
[1738177919114,0.24472116,101710.0,101700.0,0.0001425]
[1738177919990,0.148478,101710.0,101700.0,0.0001425]
[1738177920663,0.24572116,101710.0,101700.0,0.0001425]
[1738177921878,0.78379449,101710.0,101700.0,0.0011425]
[1738177922148,0.70643773,101710.0,101700.0,0.0011425]
[1738177922360,0.65343773,101710.0,101700.0,0.0011425]
[1738177922643,0.67343773,101710.0,101700.0,0.0011425]
[1738177922951,0.65243773,101710.0,101700.0,0.0001425]
[1738177923197,0.66343773,101710.0,101700.0,0.0001425]
[1738177923440,0.149478,101710.0,101700.0,0.0001425]
[1738177924424,0.147478,101710.0,101700.0,0.0001425]
[1738177924709,0.160478,101710.0,101700.0,0.0001425]
[1738177924977,0.50643773,101710.0,101700.0,0.0001425]
[1738177925229,0.67243773,101710.0,101700.0,0.0001425]
[1738177925499,0.78443773,101710.0,101700.0,0.0001425]
[1738177925717,0.77443773,101710.0,101700.0,0.0001425]
[1738177926221,0.78543773,101710.0,101700.0,0.0001425]
[1738177926456,0.01,101700.0,101690.0,0.0001423]
[1738177926721,0.27773516,101700.0,101690.0,0.0001423]
[1738177926951,0.24473516,101700.0,101690.0,0.0001423]
[1738177927705,0.24473516,101700.0,101690.0,0.00028635]
[1738177928192,0.24873516,101700.0,101690.0,0.00028635]
[1738177928453,0.42173516,101700.0,101690.0,0.00028635]
[1738177928712,0.42873516,101700.0,101690.0,0.00028635]
[1738177928951,0.50051516,101700.0,101690.0,0.00028635]
[1738177929427,0.49651516,101700.0,101690.0,0.00028635]
[1738177929676,0.51451516,101700.0,101690.0,0.00128635]
[1738177930214,0.50551516,101700.0,101690.0,0.00028635]
[1738177930907,0.49651516,101700.0,101690.0,0.00028635]
[1738177931121,0.50551516,101700.0,101690.0,0.00028635]
[1738177931556,0.49551516,101700.0,101690.0,0.00028635]
[1738177931774,0.47251516,101700.0,101690.0,0.00028635]
[1738177932045,0.48151516,101700.0,101690.0,0.00028635]
[1738177932325,0.45251516,101700.0,101690.0,0.00028635]
[1738177932537,0.51133252,101700.0,101690.0,0.00028635]
[1738177932802,0.53433252,101700.0,101690.0,0.00028635]
[1738177933074,0.52433252,101700.0,101690.0,0.00028635]
[1738177933266,0.79204909,101700.0,101690.0,0.00028635]
[1738177933519,0.71923173,101700.0,101690.0,0.00028635]
[1738177933770,0.06678,101700.0,101690.0,0.00028635]
[1738177934015,0.06678,101700.0,101690.0,0.24503651]
[1738177934499,0.05778,101700.0,101690.0,0.24503651]
[1738177934769,0.05678,101700.0,101690.0,0.39503651]
[1738177935014,0.008,101700.0,101690.0,0.39503651]
[1738177935263,0.08678539,101730.0,101720.0,0.147463]
[1738177935503,0.08678539,101730.0,101720.0,0.29090616]
[1738177935722,0.08678539,101730.0,101720.0,0.54862273]
[1738177935949,0.08678539,101730.0,101720.0,0.29090616]
[1738177936674,0.00029925,101750.0,101740.0,0.147434]
[1738177936914,0.00029925,101750.0,101740.0,0.24565978]
[1738177937133,0.00029925,101750.0,101740.0,0.73359373]